[Event "Titled Tuesday Blitz August 22 Early 2023"]
[White "Shukhman, Anna"]
[Black "Ljukin, Sergei"]
[WhiteFideId "54180058"]
[BlackFideId "14102200"]
[WhiteElo "2555"]
[BlackElo "2455"]
[Result "1-0"]
[Round "9"]
[TimeControl "180+1"]
[Date "2023.08.22"]
[WhiteClock "0:00:07"]
[BlackClock "0:00:03"]
[Board "93"]

1. e4 {[%clk 0:03:00]}  e6 {[%clk 0:02:38]} 2. d4 {[%clk 0:03:00]}  d5 {[%clk 0:02:37]} 3. Nc3 {[%clk 0:03:00]}  Bb4 {[%clk 0:02:37]} 4. e5 {[%clk 0:03:00]}  Ne7 {[%clk 0:02:37]} 5. a3 {[%clk 0:02:56]}  Bxc3+ {[%clk 0:02:37]} 6. bxc3 {[%clk 0:02:57]}  c5 {[%clk 0:02:37]} 7. Qg4 {[%clk 0:02:57]}  Qc7 {[%clk 0:02:37]} 8. Qxg7 {[%clk 0:02:57]}  Rg8 {[%clk 0:02:38]} 9. Qxh7 {[%clk 0:02:57]}  cxd4 {[%clk 0:02:38]} 10. Ne2 {[%clk 0:02:58]}  Nbc6 {[%clk 0:02:38]} 11. f4 {[%clk 0:02:58]}  Bd7 {[%clk 0:02:37]} 12. h4 {[%clk 0:02:58]}  dxc3 {[%clk 0:02:37]} 13. h5 {[%clk 0:02:57]}  O-O-O {[%clk 0:02:35]} 14. Qd3 {[%clk 0:02:57]}  d4 {[%clk 0:02:35]} 15. Nxd4 {[%clk 0:02:31]}  Nxd4 {[%clk 0:02:33]} 16. Qxd4 {[%clk 0:02:32]}  Kb8 {[%clk 0:02:27]} 17. Qf2 {[%clk 0:02:26]}  Nf5 {[%clk 0:02:18]} 18. Rh3 {[%clk 0:02:22]}  Ba4 {[%clk 0:02:10]} 19. Bd3 {[%clk 0:02:20]}  Bc6 {[%clk 0:02:08]} 20. Bf1 {[%clk 0:02:07]}  Be4 {[%clk 0:02:05]} 21. h6 {[%clk 0:02:03]}  Qd7 {[%clk 0:01:45]} 22. Be3 {[%clk 0:01:46]}  Nxe3 {[%clk 0:01:35]} 23. Rxe3 {[%clk 0:01:44]}  Qd4 {[%clk 0:01:22]} 24. Re2 {[%clk 0:01:21]}  Qd5 {[%clk 0:01:14]} 25. Re3 {[%clk 0:00:59]}  Qd4 {[%clk 0:01:02]} 26. g3 {[%clk 0:00:52]}  Bxc2 {[%clk 0:00:52]} 27. Bg2 {[%clk 0:00:51]}  Bd3 {[%clk 0:00:24]} 28. Qf3 {[%clk 0:00:45]}  Ba6 {[%clk 0:00:17]} 29. Ra2 {[%clk 0:00:20]}  Rg6 {[%clk 0:00:13]} 30. h7 {[%clk 0:00:20]}  Rh6 {[%clk 0:00:13]} 31. Rxc3 {[%clk 0:00:15]}  Qg1+ {[%clk 0:00:11]} 32. Bf1 {[%clk 0:00:14]}  Rxh7 {[%clk 0:00:10]} 33. Rg2 {[%clk 0:00:09]}  Qd4 {[%clk 0:00:09]} 34. Bxa6 {[%clk 0:00:07]}  bxa6 {[%clk 0:00:07]} 35. Rb2+ {[%clk 0:00:06]}  Qb6 {[%clk 0:00:06]} 36. Rxb6+ {[%clk 0:00:06]}  axb6 {[%clk 0:00:06]} 37. Rb3 {[%clk 0:00:07]}  Ka7 {[%clk 0:00:06]} 38. Qc6 {[%clk 0:00:07]}  Rb8 {[%clk 0:00:05]} 39. Rd3 {[%clk 0:00:07]}  Rb7 {[%clk 0:00:05]} 40. Rd8 {[%clk 0:00:07]}  f5 {[%clk 0:00:04]} 41. Qc8 {[%clk 0:00:07]}  b5 {[%clk 0:00:02]} 42. Qa8+ {[%clk 0:00:07]}  Kb6 {[%clk 0:00:02]} 43. Rd6+ {[%clk 0:00:07]}  Kc7 {[%clk 0:00:03]} 44. Qd8# {[%clk 0:00:07]} 1-0


[Site "https://www.chess.com"]

[Event "Titled Tuesday Blitz August 22 Early 2023"]
[White "Sai Han Thiha"]
[Black "Mihailidis, Anastasios"]
[WhiteFideId "13012290"]
[BlackFideId "4205588"]
[WhiteElo "2454"]
[BlackElo "2538"]
[Result "0-1"]
[Round "9"]
[TimeControl "180+1"]
[Date "2023.08.22"]
[WhiteClock "0:01:20"]
[BlackClock "0:00:57"]
[Board "94"]

1. Nf3 {[%clk 0:03:00]}  d5 {[%clk 0:02:58]} 2. g3 {[%clk 0:03:01]}  Nf6 {[%clk 0:02:58]} 3. Bg2 {[%clk 0:03:01]}  e6 {[%clk 0:02:58]} 4. O-O {[%clk 0:03:01]}  Be7 {[%clk 0:02:59]} 5. d3 {[%clk 0:03:02]}  O-O {[%clk 0:02:59]} 6. Nbd2 {[%clk 0:03:02]}  c5 {[%clk 0:02:59]} 7. e4 {[%clk 0:03:03]}  Nc6 {[%clk 0:02:58]} 8. Re1 {[%clk 0:03:04]}  b5 {[%clk 0:02:58]} 9. e5 {[%clk 0:03:02]}  Nd7 {[%clk 0:02:58]} 10. Nf1 {[%clk 0:03:03]}  f6 {[%clk 0:02:57]} 11. exf6 {[%clk 0:02:41]}  Nxf6 {[%clk 0:02:56]} 12. c4 {[%clk 0:02:34]}  bxc4 {[%clk 0:02:53]} 13. dxc4 {[%clk 0:02:35]}  Ne4 {[%clk 0:02:41]} 14. Ne3 {[%clk 0:02:24]}  Nf6 {[%clk 0:02:14]} 15. Ng5 {[%clk 0:02:07]}  h6 {[%clk 0:02:04]} 16. cxd5 {[%clk 0:01:55]}  exd5 {[%clk 0:01:53]} 17. Nxd5 {[%clk 0:01:54]}  hxg5 {[%clk 0:01:52]} 18. Nxe7+ {[%clk 0:01:52]}  Nxe7 {[%clk 0:01:49]} 19. Qxd8 {[%clk 0:01:52]}  Rxd8 {[%clk 0:01:48]} 20. Bxa8 {[%clk 0:01:52]}  Nf5 {[%clk 0:01:45]} 21. Bxg5 {[%clk 0:01:48]}  Nd4 {[%clk 0:01:44]} 22. Rad1 {[%clk 0:01:38]}  Bg4 {[%clk 0:01:36]} 23. f3 {[%clk 0:01:33]}  Rxa8 {[%clk 0:01:35]} 24. fxg4 {[%clk 0:01:32]}  Nf3+ {[%clk 0:01:34]} 25. Kf2 {[%clk 0:01:30]}  Nxg5 {[%clk 0:01:29]} 26. Re5 {[%clk 0:01:29]}  Nxg4+ {[%clk 0:01:27]} 27. Ke2 {[%clk 0:01:28]}  Nxe5 {[%clk 0:01:28]} 28. Rd5 {[%clk 0:01:29]}  Re8 {[%clk 0:01:25]} 29. h4 {[%clk 0:01:28]}  Ngf7 {[%clk 0:01:24]} 30. b3 {[%clk 0:01:25]}  Nc6+ {[%clk 0:01:19]} 31. Kd2 {[%clk 0:01:23]}  Rd8 {[%clk 0:01:18]} 32. Rxd8+ {[%clk 0:01:22]}  Ncxd8 {[%clk 0:01:19]} 33. Kd3 {[%clk 0:01:22]}  Nh6 {[%clk 0:01:18]} 34. Kc4 {[%clk 0:01:23]}  Ne6 {[%clk 0:01:18]} 35. Kd5 {[%clk 0:01:23]}  Kf7 {[%clk 0:01:18]} 36. a3 {[%clk 0:01:22]}  Nf5 {[%clk 0:01:18]} 37. h5 {[%clk 0:01:22]}  Nxg3 {[%clk 0:01:18]} 38. b4 {[%clk 0:01:21]}  cxb4 {[%clk 0:01:17]} 39. axb4 {[%clk 0:01:22]}  Nxh5 {[%clk 0:01:18]} 40. Kc6 {[%clk 0:01:22]}  g5 {[%clk 0:01:18]} 41. Kb7 {[%clk 0:01:23]}  g4 {[%clk 0:01:18]} 42. Kxa7 {[%clk 0:01:23]}  g3 {[%clk 0:01:19]} 43. b5 {[%clk 0:01:24]}  g2 {[%clk 0:01:18]} 44. b6 {[%clk 0:01:25]}  g1=Q {[%clk 0:01:18]} 45. Ka8 {[%clk 0:01:25]}  Qa1+ {[%clk 0:01:14]} 46. Kb7 {[%clk 0:01:25]}  Qb2 {[%clk 0:01:12]} 47. Ka7 {[%clk 0:01:25]}  Nc5 {[%clk 0:01:01]} 48. Ka8 {[%clk 0:01:22]}  Ke7 {[%clk 0:01:01]} 49. Ka7 {[%clk 0:01:20]}  Kd7 {[%clk 0:01:00]} 50. Ka8 {[%clk 0:01:20]}  Kc8 {[%clk 0:00:58]} 51. Ka7 {[%clk 0:01:20]}  Qa3# {[%clk 0:00:57]} 0-1


[Site "https://www.chess.com"]

[Event "Titled Tuesday Blitz August 22 Early 2023"]
[White "Eggleston, Thomas A"]
[Black "Lehtosaari, Mauri"]
[WhiteFideId "412139"]
[BlackFideId "501999"]
[WhiteElo "2438"]
[BlackElo "2521"]
[Result "0-1"]
[Round "9"]
[TimeControl "180+1"]
[Date "2023.08.22"]
[WhiteClock "0:00:00"]
[BlackClock "0:00:16"]
[Board "98"]

1. d4 {[%clk 0:03:00]}  d5 {[%clk 0:02:58]} 2. Nf3 {[%clk 0:02:59]}  Nf6 {[%clk 0:02:58]} 3. Nbd2 {[%clk 0:02:58]}  c6 {[%clk 0:02:57]} 4. b4 {[%clk 0:02:57]}  a5 {[%clk 0:02:49]} 5. bxa5 {[%clk 0:02:53]}  Qxa5 {[%clk 0:02:48]} 6. e3 {[%clk 0:02:48]}  Bg4 {[%clk 0:02:44]} 7. Be2 {[%clk 0:02:40]}  e6 {[%clk 0:02:41]} 8. O-O {[%clk 0:02:33]}  b5 {[%clk 0:02:39]} 9. Ne5 {[%clk 0:02:25]}  Bxe2 {[%clk 0:02:39]} 10. Qxe2 {[%clk 0:02:25]}  Bd6 {[%clk 0:02:21]} 11. a4 {[%clk 0:02:22]}  bxa4 {[%clk 0:02:14]} 12. c4 {[%clk 0:02:19]}  Qa6 {[%clk 0:02:11]} 13. Ba3 {[%clk 0:02:13]}  Bxa3 {[%clk 0:02:03]} 14. Rxa3 {[%clk 0:02:13]}  O-O {[%clk 0:01:57]} 15. Rfa1 {[%clk 0:02:11]}  Nfd7 {[%clk 0:01:54]} 16. Rxa4 {[%clk 0:02:05]}  Qxa4 {[%clk 0:01:54]} 17. Rxa4 {[%clk 0:02:05]}  Rxa4 {[%clk 0:01:55]} 18. Nef3 {[%clk 0:01:38]}  Nf6 {[%clk 0:01:46]} 19. h3 {[%clk 0:01:33]}  Nbd7 {[%clk 0:01:44]} 20. e4 {[%clk 0:01:29]}  dxe4 {[%clk 0:01:22]} 21. Ng5 {[%clk 0:01:28]}  h6 {[%clk 0:01:14]} 22. Ngxe4 {[%clk 0:01:28]}  Rb8 {[%clk 0:01:12]} 23. Nd6 {[%clk 0:01:14]}  Rb2 {[%clk 0:01:05]} 24. Qd3 {[%clk 0:01:14]}  Raa2 {[%clk 0:01:00]} 25. N2e4 {[%clk 0:01:04]}  Nxe4 {[%clk 0:00:59]} 26. Nxe4 {[%clk 0:01:04]}  Nf6 {[%clk 0:00:57]} 27. Nxf6+ {[%clk 0:00:56]}  gxf6 {[%clk 0:00:57]} 28. Qg3+ {[%clk 0:00:56]}  Kh7 {[%clk 0:00:54]} 29. Qc7 {[%clk 0:00:54]}  Kg7 {[%clk 0:00:54]} 30. Qxc6 {[%clk 0:00:54]}  Rxf2 {[%clk 0:00:50]} 31. Qb7 {[%clk 0:00:48]}  Rab2 {[%clk 0:00:42]} 32. Qa8 {[%clk 0:00:46]}  Rfd2 {[%clk 0:00:36]} 33. Qe4 {[%clk 0:00:38]}  f5 {[%clk 0:00:31]} 34. Qe5+ {[%clk 0:00:36]}  Kg6 {[%clk 0:00:32]} 35. Qg3+ {[%clk 0:00:35]}  Kh7 {[%clk 0:00:32]} 36. d5 {[%clk 0:00:23]}  exd5 {[%clk 0:00:29]} 37. Qc7 {[%clk 0:00:22]}  Rxg2+ {[%clk 0:00:27]} 38. Kf1 {[%clk 0:00:22]}  Kg6 {[%clk 0:00:19]} 39. cxd5 {[%clk 0:00:20]}  Rgc2 {[%clk 0:00:17]} 40. Qg3+ {[%clk 0:00:10]}  Kh7 {[%clk 0:00:17]} 41. Qe1 {[%clk 0:00:05]}  Rh2 {[%clk 0:00:15]} 42. Kg1 {[%clk 0:00:04]}  Rbg2+ {[%clk 0:00:15]} 43. Kf1 {[%clk 0:00:04]}  Rh1+ {[%clk 0:00:15]} 44. Kxg2 {[%clk 0:00:00]}  Rxe1 {[%clk 0:00:16]} 0-1


[Site "https://www.chess.com"]

[Event "Titled Tuesday Blitz August 22 Early 2023"]
[White "Vivas Zamora, Fabian Ernesto"]
[Black "NovozhilovSemen"]
[WhiteFideId "3902480"]
[WhiteElo "2436"]
[BlackElo "2519"]
[Result "1-0"]
[Round "9"]
[TimeControl "180+1"]
[Date "2023.08.22"]
[WhiteClock "0:00:57"]
[BlackClock "0:01:47"]
[Board "99"]

1. e4 {[%clk 0:02:49]}  e6 {[%clk 0:02:58]} 2. d4 {[%clk 0:02:49]}  d5 {[%clk 0:02:58]} 3. Nd2 {[%clk 0:02:50]}  c5 {[%clk 0:02:58]} 4. Ngf3 {[%clk 0:02:49]}  Nf6 {[%clk 0:02:57]} 5. e5 {[%clk 0:02:49]}  Nfd7 {[%clk 0:02:57]} 6. c3 {[%clk 0:02:50]}  Nc6 {[%clk 0:02:57]} 7. Bd3 {[%clk 0:02:50]}  g6 {[%clk 0:02:58]} 8. h4 {[%clk 0:02:50]}  h6 {[%clk 0:02:55]} 9. a3 {[%clk 0:02:42]}  a5 {[%clk 0:02:53]} 10. Nf1 {[%clk 0:02:39]}  Bg7 {[%clk 0:02:51]} 11. Bc2 {[%clk 0:02:33]}  O-O {[%clk 0:02:48]} 12. h5 {[%clk 0:02:05]}  g5 {[%clk 0:02:44]} 13. Nxg5 {[%clk 0:01:46]}  hxg5 {[%clk 0:02:23]} 14. h6 {[%clk 0:01:46]}  Bh8 {[%clk 0:02:23]} 15. h7+ {[%clk 0:01:26]}  Kg7 {[%clk 0:02:23]} 16. Qh5 {[%clk 0:01:24]}  f5 {[%clk 0:02:17]} 17. Bxg5 {[%clk 0:01:17]}  Qb6 {[%clk 0:01:50]} 18. Bh6+ {[%clk 0:01:10]}  Kxh7 {[%clk 0:01:50]} 19. Bxf8+ {[%clk 0:01:04]}  Kg8 {[%clk 0:01:50]} 20. Qxh8+ {[%clk 0:00:57]}  Kf7 {[%clk 0:01:50]} 21. Rh7+ {[%clk 0:00:57]}  Ke8 {[%clk 0:01:47]} 22. Bd6+ {[%clk 0:00:57]} 1-0


[Site "https://www.chess.com"]

[Event "Titled Tuesday Blitz August 22 Early 2023"]
[White "Slovineanu, Viacheslav"]
[Black "Shishkov, Andrei"]
[WhiteFideId "13900510"]
[BlackFideId "4500563"]
[WhiteElo "2391"]
[BlackElo "2513"]
[Result "1-0"]
[Round "9"]
[TimeControl "180+1"]
[Date "2023.08.22"]
[WhiteClock "0:01:35"]
[BlackClock "0:00:02"]
[Board "103"]

1. d4 {[%clk 0:02:55]}  Nf6 {[%clk 0:02:59]} 2. Nf3 {[%clk 0:02:54]}  e6 {[%clk 0:02:59]} 3. c4 {[%clk 0:02:54]}  d5 {[%clk 0:02:59]} 4. e3 {[%clk 0:02:54]}  Be7 {[%clk 0:02:58]} 5. b3 {[%clk 0:02:54]}  O-O {[%clk 0:02:58]} 6. Bd3 {[%clk 0:02:54]}  dxc4 {[%clk 0:02:54]} 7. bxc4 {[%clk 0:02:54]}  c5 {[%clk 0:02:54]} 8. O-O {[%clk 0:02:53]}  b6 {[%clk 0:02:52]} 9. Bb2 {[%clk 0:02:53]}  Bb7 {[%clk 0:02:53]} 10. Qe2 {[%clk 0:02:53]}  Nbd7 {[%clk 0:02:50]} 11. Nc3 {[%clk 0:02:53]}  Rc8 {[%clk 0:02:48]} 12. Rad1 {[%clk 0:02:52]}  cxd4 {[%clk 0:02:40]} 13. exd4 {[%clk 0:02:52]}  Qc7 {[%clk 0:02:41]} 14. Ne5 {[%clk 0:02:51]}  Nxe5 {[%clk 0:02:37]} 15. dxe5 {[%clk 0:02:50]}  Nd7 {[%clk 0:02:20]} 16. Nb5 {[%clk 0:02:50]}  Qc6 {[%clk 0:02:19]} 17. Qg4 {[%clk 0:02:50]}  h5 {[%clk 0:02:02]} 18. Qg3 {[%clk 0:02:50]}  h4 {[%clk 0:01:58]} 19. Qg4 {[%clk 0:02:46]}  Nc5 {[%clk 0:00:53]} 20. Nxa7 {[%clk 0:02:42]}  Qc7 {[%clk 0:00:24]} 21. Nxc8 {[%clk 0:02:40]}  Rxc8 {[%clk 0:00:24]} 22. Bc2 {[%clk 0:02:21]}  Ra8 {[%clk 0:00:20]} 23. Qh5 {[%clk 0:02:07]}  g6 {[%clk 0:00:16]} 24. Bxg6 {[%clk 0:02:06]}  fxg6 {[%clk 0:00:17]} 25. Qxg6+ {[%clk 0:02:07]}  Kf8 {[%clk 0:00:17]} 26. Rd4 {[%clk 0:01:58]}  Be4 {[%clk 0:00:07]} 27. Rxe4 {[%clk 0:01:52]}  Nxe4 {[%clk 0:00:08]} 28. Qxe4 {[%clk 0:01:42]}  Rxa2 {[%clk 0:00:09]} 29. Bc1 {[%clk 0:01:42]}  Ra4 {[%clk 0:00:06]} 30. Bh6+ {[%clk 0:01:40]}  Ke8 {[%clk 0:00:06]} 31. Rd1 {[%clk 0:01:38]}  Qxc4 {[%clk 0:00:02]} 32. Qg6# {[%clk 0:01:35]} 1-0


[Site "https://www.chess.com"]

[Event "Titled Tuesday Blitz August 22 Early 2023"]
[White "Glavina, Pablo"]
[Black "laidfrq"]
[WhiteFideId "100234"]
[WhiteElo "2510"]
[BlackElo "2372"]
[Result "1-0"]
[Round "9"]
[TimeControl "180+1"]
[Date "2023.08.22"]
[WhiteClock "0:00:03"]
[BlackClock "0:00:06"]
[Board "104"]

1. c4 {[%clk 0:03:00]}  e5 {[%clk 0:02:57]} 2. Nc3 {[%clk 0:03:00]}  d6 {[%clk 0:02:55]} 3. Nf3 {[%clk 0:03:00]}  f5 {[%clk 0:02:53]} 4. d4 {[%clk 0:03:00]}  e4 {[%clk 0:02:50]} 5. Ng1 {[%clk 0:03:00]}  Be7 {[%clk 0:02:48]} 6. Bf4 {[%clk 0:02:55]}  Nf6 {[%clk 0:02:46]} 7. e3 {[%clk 0:02:54]}  O-O {[%clk 0:02:45]} 8. h4 {[%clk 0:02:53]}  c6 {[%clk 0:02:44]} 9. Nh3 {[%clk 0:02:53]}  Na6 {[%clk 0:02:42]} 10. Qb3 {[%clk 0:02:52]}  Nc7 {[%clk 0:02:40]} 11. Be2 {[%clk 0:02:51]}  d5 {[%clk 0:02:38]} 12. Bxc7 {[%clk 0:02:48]}  Qxc7 {[%clk 0:02:38]} 13. cxd5 {[%clk 0:02:49]}  Kh8 {[%clk 0:02:35]} 14. Nf4 {[%clk 0:02:45]}  Bd6 {[%clk 0:02:31]} 15. g3 {[%clk 0:02:36]}  Rd8 {[%clk 0:02:22]} 16. dxc6 {[%clk 0:02:34]}  bxc6 {[%clk 0:02:20]} 17. O-O {[%clk 0:02:32]}  Rb8 {[%clk 0:02:16]} 18. Qc2 {[%clk 0:02:29]}  Bxf4 {[%clk 0:02:13]} 19. gxf4 {[%clk 0:02:28]}  Qf7 {[%clk 0:02:12]} 20. Kh2 {[%clk 0:02:24]}  Be6 {[%clk 0:02:09]} 21. Rg1 {[%clk 0:02:22]}  Bc4 {[%clk 0:02:06]} 22. b3 {[%clk 0:01:52]}  Bxe2 {[%clk 0:02:06]} 23. Qxe2 {[%clk 0:01:52]}  Rbc8 {[%clk 0:02:01]} 24. Rad1 {[%clk 0:01:50]}  Qe6 {[%clk 0:01:48]} 25. Kh3 {[%clk 0:01:34]}  Rc7 {[%clk 0:01:40]} 26. Na4 {[%clk 0:01:30]}  Ng4 {[%clk 0:01:34]} 27. Nc5 {[%clk 0:01:30]}  Qe7 {[%clk 0:01:30]} 28. Rxg4 {[%clk 0:01:29]}  fxg4+ {[%clk 0:01:28]} 29. Qxg4 {[%clk 0:01:30]}  Rd5 {[%clk 0:01:22]} 30. Rc1 {[%clk 0:01:25]}  Qe8 {[%clk 0:01:12]} 31. Rc4 {[%clk 0:01:23]}  g6 {[%clk 0:01:04]} 32. Ra4 {[%clk 0:01:16]}  Rf5 {[%clk 0:01:01]} 33. Rb4 {[%clk 0:00:57]}  Re7 {[%clk 0:01:01]} 34. Na6 {[%clk 0:00:53]}  Qd7 {[%clk 0:00:57]} 35. Rb8+ {[%clk 0:00:51]}  Kg7 {[%clk 0:00:57]} 36. Nc5 {[%clk 0:00:50]}  h5 {[%clk 0:00:47]} 37. Nxd7 {[%clk 0:00:18]}  hxg4+ {[%clk 0:00:47]} 38. Kxg4 {[%clk 0:00:19]}  Rxd7 {[%clk 0:00:47]} 39. Re8 {[%clk 0:00:20]}  Ra5 {[%clk 0:00:43]} 40. a4 {[%clk 0:00:12]}  Rb7 {[%clk 0:00:32]} 41. Rxe4 {[%clk 0:00:12]}  Rxb3 {[%clk 0:00:32]} 42. Re6 {[%clk 0:00:13]}  Rxa4 {[%clk 0:00:29]} 43. Rxc6 {[%clk 0:00:12]}  Rb7 {[%clk 0:00:27]} 44. d5 {[%clk 0:00:10]}  Ra5 {[%clk 0:00:24]} 45. e4 {[%clk 0:00:08]}  Re7 {[%clk 0:00:20]} 46. f3 {[%clk 0:00:09]}  Ra1 {[%clk 0:00:18]} 47. f5 {[%clk 0:00:09]}  Rg1+ {[%clk 0:00:18]} 48. Kf4 {[%clk 0:00:09]}  gxf5 {[%clk 0:00:18]} 49. Kxf5 {[%clk 0:00:10]}  a5 {[%clk 0:00:18]} 50. Ra6 {[%clk 0:00:10]}  Ra1 {[%clk 0:00:17]} 51. e5 {[%clk 0:00:07]}  Rb7 {[%clk 0:00:15]} 52. f4 {[%clk 0:00:06]}  a4 {[%clk 0:00:15]} 53. Rg6+ {[%clk 0:00:03]}  Kf7 {[%clk 0:00:14]} 54. e6+ {[%clk 0:00:02]}  Kf8 {[%clk 0:00:13]} 55. d6 {[%clk 0:00:01]}  Rc1 {[%clk 0:00:11]} 56. Kf6 {[%clk 0:00:01]}  Rc6 {[%clk 0:00:05]} 57. e7+ {[%clk 0:00:02]}  Ke8 {[%clk 0:00:05]} 58. Rg8+ {[%clk 0:00:02]}  Kd7 {[%clk 0:00:06]} 59. Rd8# {[%clk 0:00:03]} 1-0


[Site "https://www.chess.com"]

[Event "Titled Tuesday Blitz August 22 Early 2023"]
[White "Tikhonov, Viacheslav"]
[Black "Bashirli, Saadat"]
[WhiteFideId "44196407"]
[BlackFideId "13429990"]
[WhiteElo "2506"]
[BlackElo "2364"]
[Result "0-1"]
[Round "9"]
[TimeControl "180+1"]
[Date "2023.08.22"]
[WhiteClock "0:00:14"]
[BlackClock "0:00:13"]
[Board "106"]

1. d4 {[%clk 0:03:00]}  Nf6 {[%clk 0:02:58]} 2. c4 {[%clk 0:03:01]}  g6 {[%clk 0:02:57]} 3. Nc3 {[%clk 0:03:00]}  Bg7 {[%clk 0:02:55]} 4. e4 {[%clk 0:03:00]}  d6 {[%clk 0:02:54]} 5. Be2 {[%clk 0:03:01]}  O-O {[%clk 0:02:54]} 6. h4 {[%clk 0:03:02]}  h5 {[%clk 0:02:53]} 7. Nf3 {[%clk 0:02:58]}  c5 {[%clk 0:02:52]} 8. d5 {[%clk 0:02:55]}  Nbd7 {[%clk 0:02:46]} 9. Ng5 {[%clk 0:02:49]}  Ne5 {[%clk 0:02:42]} 10. f3 {[%clk 0:02:48]}  a6 {[%clk 0:02:32]} 11. Be3 {[%clk 0:02:46]}  Rb8 {[%clk 0:02:31]} 12. Qd2 {[%clk 0:02:45]}  Bd7 {[%clk 0:02:28]} 13. a4 {[%clk 0:02:40]}  Qa5 {[%clk 0:02:24]} 14. Ra3 {[%clk 0:02:28]}  Qb4 {[%clk 0:02:20]} 15. Na2 {[%clk 0:01:46]}  Qxd2+ {[%clk 0:01:53]} 16. Kxd2 {[%clk 0:01:44]}  Rfc8 {[%clk 0:01:52]} 17. Nc3 {[%clk 0:01:41]}  b6 {[%clk 0:01:49]} 18. Nh3 {[%clk 0:01:35]}  Kf8 {[%clk 0:01:46]} 19. b3 {[%clk 0:01:35]}  Ke8 {[%clk 0:01:38]} 20. Nf4 {[%clk 0:01:36]}  Kf8 {[%clk 0:01:35]} 21. Nd3 {[%clk 0:01:36]}  Nxd3 {[%clk 0:01:34]} 22. Bxd3 {[%clk 0:01:37]}  e5 {[%clk 0:01:25]} 23. Rb1 {[%clk 0:01:24]}  a5 {[%clk 0:01:19]} 24. f4 {[%clk 0:01:23]}  Ng4 {[%clk 0:01:17]} 25. f5 {[%clk 0:01:21]}  Nxe3 {[%clk 0:01:10]} 26. Kxe3 {[%clk 0:01:22]}  Ke7 {[%clk 0:01:10]} 27. Ra2 {[%clk 0:01:18]}  Rg8 {[%clk 0:01:04]} 28. Rf2 {[%clk 0:01:17]}  gxf5 {[%clk 0:01:00]} 29. exf5 {[%clk 0:01:16]}  Bh6+ {[%clk 0:01:01]} 30. Ke2 {[%clk 0:01:13]}  f6 {[%clk 0:01:00]} 31. Rh1 {[%clk 0:01:06]}  Rg3 {[%clk 0:00:57]} 32. Nd1 {[%clk 0:00:54]}  Rbg8 {[%clk 0:00:53]} 33. Rh2 {[%clk 0:00:54]}  Bf4 {[%clk 0:00:52]} 34. Be4 {[%clk 0:00:28]}  Rxb3 {[%clk 0:00:50]} 35. Rh3 {[%clk 0:00:27]}  Rb4 {[%clk 0:00:30]} 36. Bf3 {[%clk 0:00:19]}  Be8 {[%clk 0:00:29]} 37. Nc3 {[%clk 0:00:16]}  Rxc4 {[%clk 0:00:27]} 38. Nb5 {[%clk 0:00:16]}  Rxa4 {[%clk 0:00:24]} 39. Nc7 {[%clk 0:00:17]}  Bf7 {[%clk 0:00:23]} 40. Ne6 {[%clk 0:00:16]}  Ra2+ {[%clk 0:00:23]} 41. Kf1 {[%clk 0:00:16]}  Ra1+ {[%clk 0:00:22]} 42. Ke2 {[%clk 0:00:16]}  b5 {[%clk 0:00:21]} 43. Nxf4 {[%clk 0:00:13]}  exf4 {[%clk 0:00:21]} 44. Be4 {[%clk 0:00:12]}  Ra2+ {[%clk 0:00:21]} 45. Kf3 {[%clk 0:00:12]}  Rxf2+ {[%clk 0:00:19]} 46. Kxf2 {[%clk 0:00:13]}  Rg4 {[%clk 0:00:17]} 47. Bf3 {[%clk 0:00:12]}  Rg8 {[%clk 0:00:17]} 48. Be4 {[%clk 0:00:12]}  b4 {[%clk 0:00:17]} 49. Bc2 {[%clk 0:00:11]}  Bxd5 {[%clk 0:00:16]} 50. Rd3 {[%clk 0:00:11]}  Bxg2 {[%clk 0:00:13]} 51. Rd2 {[%clk 0:00:09]}  Bc6 {[%clk 0:00:13]} 52. Bb3 {[%clk 0:00:09]}  Rg2+ {[%clk 0:00:11]} 53. Ke1 {[%clk 0:00:09]}  Rxd2 {[%clk 0:00:12]} 54. Kxd2 {[%clk 0:00:10]}  d5 {[%clk 0:00:13]} 55. Kd3 {[%clk 0:00:09]}  c4+ {[%clk 0:00:13]} 56. Kc2 {[%clk 0:00:10]}  cxb3+ {[%clk 0:00:13]} 57. Kxb3 {[%clk 0:00:11]}  f3 {[%clk 0:00:13]} 58. Ka2 {[%clk 0:00:11]}  f2 {[%clk 0:00:13]} 59. Kb3 {[%clk 0:00:12]}  f1=Q {[%clk 0:00:13]} 60. Kc2 {[%clk 0:00:13]}  Qe2+ {[%clk 0:00:13]} 61. Kb3 {[%clk 0:00:14]}  Qc4+ {[%clk 0:00:13]} 62. Kb2 {[%clk 0:00:14]}  Ba4 {[%clk 0:00:13]} 63. Ka1 {[%clk 0:00:14]}  Qc1+ {[%clk 0:00:13]} 64. Ka2 {[%clk 0:00:14]}  b3# {[%clk 0:00:13]} 0-1


[Site "https://www.chess.com"]

[Event "Titled Tuesday Blitz August 22 Early 2023"]
[White "Pax-Pramana"]
[Black "Pace, Christopher"]
[BlackFideId "2610167"]
[WhiteElo "2504"]
[BlackElo "2357"]
[Result "1-0"]
[Round "9"]
[TimeControl "180+1"]
[Date "2023.08.22"]
[WhiteClock "0:00:05"]
[BlackClock "0:00:01"]
[Board "107"]

1. e4 {[%clk 0:03:00]}  e5 {[%clk 0:02:49]} 2. Nf3 {[%clk 0:02:58]}  Nc6 {[%clk 0:02:48]} 3. d4 {[%clk 0:02:59]}  exd4 {[%clk 0:02:47]} 4. c3 {[%clk 0:03:00]}  d5 {[%clk 0:02:44]} 5. exd5 {[%clk 0:03:00]}  Qxd5 {[%clk 0:02:44]} 6. cxd4 {[%clk 0:03:00]}  Bg4 {[%clk 0:02:44]} 7. Be2 {[%clk 0:03:00]}  Bb4+ {[%clk 0:02:43]} 8. Nc3 {[%clk 0:02:59]}  Bxf3 {[%clk 0:02:27]} 9. Bxf3 {[%clk 0:02:59]}  Qc4 {[%clk 0:02:27]} 10. Qb3 {[%clk 0:02:23]}  Qxb3 {[%clk 0:02:21]} 11. Bxc6+ {[%clk 0:02:23]}  bxc6 {[%clk 0:02:19]} 12. axb3 {[%clk 0:02:24]}  Ne7 {[%clk 0:02:15]} 13. O-O {[%clk 0:02:24]}  a5 {[%clk 0:02:05]} 14. Bf4 {[%clk 0:02:11]}  O-O-O {[%clk 0:01:59]} 15. Rfd1 {[%clk 0:01:52]}  Nd5 {[%clk 0:01:22]} 16. Bd2 {[%clk 0:01:53]}  Nf6 {[%clk 0:01:01]} 17. Bg5 {[%clk 0:01:17]}  Rhe8 {[%clk 0:00:59]} 18. Kf1 {[%clk 0:01:15]}  Rd6 {[%clk 0:00:53]} 19. Bf4 {[%clk 0:01:00]}  Rd7 {[%clk 0:00:49]} 20. Be5 {[%clk 0:00:54]}  Ng4 {[%clk 0:00:29]} 21. Bg3 {[%clk 0:00:25]}  Red8 {[%clk 0:00:20]} 22. h3 {[%clk 0:00:25]}  Nh6 {[%clk 0:00:20]} 23. Ne2 {[%clk 0:00:23]}  Nf5 {[%clk 0:00:19]} 24. Bf4 {[%clk 0:00:17]}  Nxd4 {[%clk 0:00:19]} 25. Nxd4 {[%clk 0:00:13]}  Rxd4 {[%clk 0:00:20]} 26. Rxd4 {[%clk 0:00:11]}  Rxd4 {[%clk 0:00:21]} 27. Be5 {[%clk 0:00:12]}  Rd3 {[%clk 0:00:18]} 28. Bxg7 {[%clk 0:00:10]}  Rxb3 {[%clk 0:00:18]} 29. Ke2 {[%clk 0:00:10]}  c5 {[%clk 0:00:18]} 30. Be5 {[%clk 0:00:05]}  Kd7 {[%clk 0:00:10]} 31. Rd1+ {[%clk 0:00:04]}  Kc6 {[%clk 0:00:11]} 32. g4 {[%clk 0:00:05]}  a4 {[%clk 0:00:11]} 33. Ra1 {[%clk 0:00:04]}  Kb5 {[%clk 0:00:07]} 34. h4 {[%clk 0:00:04]}  Rh3 {[%clk 0:00:08]} 35. h5 {[%clk 0:00:04]}  Rb3 {[%clk 0:00:05]} 36. g5 {[%clk 0:00:03]}  c4 {[%clk 0:00:04]} 37. Rg1 {[%clk 0:00:03]}  Rd3 {[%clk 0:00:04]} 38. f4 {[%clk 0:00:03]}  Rd5 {[%clk 0:00:04]} 39. Kf3 {[%clk 0:00:03]}  a3 {[%clk 0:00:04]} 40. bxa3 {[%clk 0:00:03]}  Bxa3 {[%clk 0:00:05]} 41. Ke4 {[%clk 0:00:04]}  Rd2 {[%clk 0:00:04]} 42. Rb1+ {[%clk 0:00:04]}  Kc6 {[%clk 0:00:04]} 43. Kf5 {[%clk 0:00:05]}  Re2 {[%clk 0:00:04]} 44. Kf6 {[%clk 0:00:05]}  Rg2 {[%clk 0:00:04]} 45. Kxf7 {[%clk 0:00:05]}  Rh2 {[%clk 0:00:05]} 46. h6 {[%clk 0:00:05]}  c3 {[%clk 0:00:01]} 47. Bxc3 {[%clk 0:00:05]} 1-0


[Site "https://www.chess.com"]